[Event "KAZ-ch Open 2019"]
[Site "Almaty"]
[Date "2019.04.22"]
[Round "2.2"]
[White "Moisseyenko, Ilya"]
[Black "Makhnev, Denis"]
[Result "0-1"]
[ECO "E15"]
[WhiteElo "2329"]
[BlackElo "2483"]
[Annotator "ChessBase"]
[PlyCount "184"]
[EventDate "2019.04.21"]
[EventType "tourn"]
[EventCountry "KAZ"]
[SourceTitle "playchess.com"]
[Source "ChessBase"]
[SourceQuality "1"]
[TimeControl "40/5400+30:1800+30"]

1. d4 {[%emt 0:00:00]} Nf6 {[%emt 0:00:47]} 2. Nf3 {[%emt 0:00:00]} e6 {[%emt 0:00:05]} 3. c4 {[%emt 0:00:00]} b6 {[%emt 0:00:04]} 4. g3 {[%emt 0:00:00]} Ba6 {[%emt 0:00:07]} 5. b3 {[%emt 0:00:00]} Bb4+ {[%emt 0:00:08]} 6. Bd2 {[%emt 0:00:00]} Be7 {[%emt 0:00:07]} 7. Bg2 {[%emt 0:00:02]} c6 {[%emt 0:00:08]} 8. Bc3 {[%emt 0:00:05]} d5 {[%emt 0:00:16]} 9. Ne5 {[%emt 0:00:03]} Nfd7 {[%emt 0:00:15]} 10. Nxd7 {[%emt 0:00:05]} Nxd7 {[%emt 0:00:13]} 11. Nd2 {[%emt 0:00:03]} O-O {[%emt 0:00:31]} 12. O-O {[%emt 0:00:06]} b5 {[%emt 0:02:15]} 13. e4 {[%emt 0:01:08]} bxc4 {[%emt 0:00:10]} 14. bxc4 {[%emt 0:00:08]} dxc4 {[%emt 0:00:06]} 15. Qa4 {[%emt 0:00:09]} Bb5 {[%emt 0:00:08]} 16. Qc2 {[%emt 0:00:03]} a5 {[%emt 0:03:27]} 17. a4 {[%emt 0:06:34]} Ba6 {[%emt 0:00:05]} 18. Rfb1 {[%emt 0:25:17]} Nf6 {[%emt 0:05:45]} 19. Bf1 {[%emt 0:11:36]} c5 {[%emt 0:01:50]} 20. dxc5 {[%emt 0:01:04]} Bxc5 {[%emt 0:00:31]} 21. Nxc4 {[%emt 0:03:05]} Bxc4 {[%emt 0:17:12]} 22. Bxc4 {[%emt 0:00:26]} Ng4 {[%emt 0:00:08]} 23. Be1 {[%emt 0:02:34]} Rc8 {[%emt 0:00:07]} 24. Rc1 {[%emt 0:07:33]} Qf6 {[%emt 0:04:04]} 25. Qe2 {[%emt 0:02:11]} Nxf2 {[%emt 0:00:53]} 26. Bxf2 {[%emt 0:00:28]} Bxf2+ {[%emt 0:00:05]} 27. Qxf2 {[%emt 0:00:04]} Rxc4 {[%emt 0:00:04]} 28. Qxf6 {[%emt 0:00:17]} Rxc1+ {[%emt 0:00:04]} 29. Rxc1 {[%emt 0:00:06]} gxf6 {[%emt 0:00:03]} 30. Rc5 {[%emt 0:01:15]} Rd8 {[%emt 0:00:12]} 31. Rxa5 {[%emt 0:01:18]} Rd4 {[%emt 0:00:04]} 32. Kf2 {[%emt 0:01:14]} Rxe4 {[%emt 0:00:12]} 33. h4 {[%emt 0:17:04]} f5 {[%emt 0:00:56]} 34. Kf3 {[%emt 0:00:11]} Kg7 {[%emt 0:00:11]} 35. Ra8 {[%emt 0:00:07]} Rb4 {[%emt 0:02:42]} 36. a5 {[%emt 0:00:08]} Rb3+ {[%emt 0:00:06]} 37. Kg2 {[%emt 0:01:02]} Ra3 {[%emt 0:02:25]} 38. a6 {[%emt 0:00:15]} e5 {[%emt 0:01:30]} 39. a7 {[%emt 0:14:40]} e4 {[%emt 0:00:10]} 40. Kf2 {[%emt 0:00:00]} Kf6 {[%emt 0:00:00]} 41. Kg2 {[%emt 0:06:06]} Ra2+ {[%emt 0:06:26]} 42. Kg1 {[%emt 0:10:03]} h6 {[%emt 0:05:53]} 43. Kf1 {[%emt 0:09:45]} f4 {[%emt 0:00:13]} 44. Re8 {[%emt 0:01:20]} Rxa7 {[%emt 0:00:21]} 45. Rxe4 {[%emt 0:00:07]} fxg3 {[%emt 0:00:09]} 46. Re3 {[%emt 0:03:39]} Ra4 {[%emt 0:00:15]} 47. Rxg3 {[%emt 0:00:07]} Rxh4 {[%emt 0:00:06]} 48. Ra3 {[%emt 0:00:31]} Rh2 {[%emt 0:00:33]} 49. Kg1 {[%emt 0:00:29]} Re2 {[%emt 0:02:39]} 50. Kf1 {[%emt 0:00:09]} Rd2 {[%emt 0:00:25]} 51. Rf3+ {[%emt 0:00:16]} Ke7 {[%emt 0:00:33]} 52. Re3+ {[%emt 0:00:24]} Kf8 {[%emt 0:00:08]} 53. Rh3 {[%emt 0:00:04]} Rd6 {[%emt 0:00:06]} 54. Kg2 {[%emt 0:00:19]} Kg7 {[%emt 0:00:08]} 55. Ra3 {[%emt 0:00:04]} Rd5 {[%emt 0:00:09]} 56. Ra6 {[%emt 0:00:08]} Rg5+ {[%emt 0:00:12]} 57. Kf3 {[%emt 0:00:05]} h5 {[%emt 0:00:59]} 58. Rb6 {[%emt 0:00:43]} f6 {[%emt 0:02:48]} 59. Rb8 {[%emt 0:00:50]} Kg6 {[%emt 0:01:49]} 60. Rg8+ {[%emt 0:00:31]} Kf7 {[%emt 0:00:17]} 61. Rh8 {[%emt 0:00:57]} Kg7 {[%emt 0:02:35]} 62. Ra8 {[%emt 0:00:14]} Rg4 {[%emt 0:00:03]} 63. Rb8 {[%emt 0:01:07]} Kg6 {[%emt 0:03:53]} 64. Rg8+ {[%emt 0:00:33]} Kf5 {[%emt 0:00:04]} 65. Rh8 {[%emt 0:00:06]} Kg5 {[%emt 0:00:03]} 66. Rg8+ {[%emt 0:00:25]} Kh4 {[%emt 0:00:04]} 67. Rf8 {[%emt 0:00:07]} Rg1 {[%emt 0:00:32]} 68. Rh8 {[%emt 0:04:32]} Rf1+ {[%emt 0:02:02]} 69. Kg2 {[%emt 0:00:15]} Rf5 {[%emt 0:00:10]} 70. Rf8 {[%emt 0:00:50]} Kg4 {[%emt 0:00:24]} 71. Rg8+ {[%emt 0:02:12]} Rg5 {[%emt 0:00:04]} 72. Rf8 {[%emt 0:00:19]} f5 {[%emt 0:01:15]} 73. Kf2 {[%emt 0:00:37]} Rg7 {[%emt 0:02:45]} 74. Ra8 {[%emt 0:03:12]} Rb7 {[%emt 0:00:45]} 75. Rg8+ {[%emt 0:01:27]} Kf4 {[%emt 0:00:04]} 76. Rh8 {[%emt 0:00:08]} Rb2+ {[%emt 0:00:05]} 77. Kg1 {[%emt 0:00:14]} Kg3 {[%emt 0:00:22]} 78. Rg8+ {[%emt 0:00:06]} Kf3 {[%emt 0:00:03]} 79. Rg5 {[%emt 0:00:23]} f4 {[%emt 0:00:06]} 80. Rxh5 {[%emt 0:00:07]} Rb1+ {[%emt 0:00:12]} 81. Kh2 {[%emt 0:00:13]} Kf2 {[%emt 0:00:24]} 82. Ra5 {[%emt 0:00:12]} Re1 {[%emt 0:06:31]} 83. Ra4 {[%emt 0:01:13]} f3 {[%emt 0:00:30]} 84. Ra2+ {[%emt 0:00:14]} Re2 {[%emt 0:00:06]} 85. Ra3 {[%emt 0:02:32]} Kf1+ {[%emt 0:01:32]} 86. Kg3 {[%emt 0:00:51]} f2 {[%emt 0:00:04]} 87. Kh2 {[%emt 0:03:19]} Re5 {[%emt 0:01:08]} 88. Ra1+ {[%emt 0:00:09]} Ke2 {[%emt 0:00:04]} 89. Ra2+ {[%emt 0:00:11]} Kf3 {[%emt 0:00:04]} 90. Ra3+ {[%emt 0:01:07]} Re3 {[%emt 0:00:05]} 91. Ra4 {[%emt 0:01:06]} f1=Q {[%emt 0:00:55]} 92. Rf4+ {[%emt 0:00:04]} Ke2 {[%emt 0:00:04]} 0-1

[Event "KAZ-ch Open 2019"]
[Site "Almaty"]
[Date "2019.04.22"]
[Round "2.3"]
[White "Zhalmakhanov, Ramazan"]
[Black "Kazhgaleyev, Murtas"]
[Result "1/2-1/2"]
[ECO "C88"]
[WhiteElo "2346"]
[BlackElo "2578"]
[Annotator "RC"]
[PlyCount "97"]
[EventDate "2019.04.21"]
[EventType "tourn"]
[EventCountry "KAZ"]
[SourceTitle "playchess.com"]
[Source "ChessBase"]
[SourceQuality "1"]
[TimeControl "40/5400+30:1800+30"]

1. e4 {[%emt 0:00:00]} e5 {[%emt 0:07:51]} 2. Nf3 {[%emt 0:00:00]} Nc6 {[%emt 0:01:00]} 3. Bb5 {[%emt 0:00:00]} a6 {[%emt 0:00:32]} 4. Ba4 {[%emt 0:00:00]} Nf6 {[%emt 0:00:05]} 5. O-O {[%emt 0:00:18]} Be7 {[%emt 0:00:06]} 6. Re1 {[%emt 0:00:18]} b5 {[%emt 0:00:04]} 7. Bb3 {[%emt 0:00:05]} O-O {[%emt 0:00:04]} 8. h3 {[%emt 0:04:46]} Bb7 {[%emt 0:00:55]} 9. d3 {[%emt 0:01:00]} d6 {[%emt 0:00:08]} 10. a3 {[%emt 0:01:51]} Qd7 {[%emt 0:01:09]} 11. Nbd2 {[%emt 0:04:54]} Rfe8 {[%emt 0:02:10]} 12. Nf1 {[%emt 0:03:44]} Nd8 {[%emt 0:00:07]} 13. Ng3 {[%emt 0:03:12]} Ne6 {[%emt 0:00:06]} 14. c3 {[%emt 0:06:24]} c5 {[%emt 0:01:17]} 15. d4 {[%emt 0:03:34]} exd4 {[%emt 0:09:40]} 16. cxd4 {[%emt 0:00:08]} d5 {[%emt 0:01:03]} 17. e5 {[%emt 0:09:12]} Ne4 {[%emt 0:01:00]} 18. Nf5 {[%emt 0:01:20]} Bf8 {[%emt 0:08:03]} 19. Be3 {[%emt 0:08:13]} Rac8 {[%emt 0:04:23]} 20. Bc2 {[%emt 0:01:37]} g6 {[%emt 0:09:02]} 21. Nh6+ {[%emt 0:04:16]} Bxh6 {[%emt 0:01:11]} 22. Bxh6 {[%emt 0:00:08]} Nxd4 {[%emt 0:00:59]} 23. Nxd4 {[%emt 0:00:26]} cxd4 {[%emt 0:00:04]} 24. f4 {[%emt 0:17:46]} Rc4 {[%emt 0:07:42]} 25. Bd3 {[%emt 0:02:18]} Nc5 {[%emt 0:02:16]} 26. Bf1 {[%emt 0:05:42]} d3 {[%emt 0:02:44]} 27. b4 {[%emt 0:03:37]} Na4 {[%emt 0:03:46]} 28. Qxd3 {[%emt 0:01:35]} d4 {[%emt 0:00:47]} 29. Qg3 {[%emt 0:01:02]} Rc2 {[%emt 0:05:54]} 30. Rac1 {[%emt 0:01:50]} Rxc1 {[%emt 0:07:15]} 31. Rxc1 {[%emt 0:00:07]} Nc3 {[%emt 0:00:18]} 32. Qh4 {[%emt 0:04:43]} f5 {[%emt 0:03:43]} 33. Qf6 {[%emt 0:03:07]} Nd5 {[%emt 0:03:25]} 34. Qd6 {[%emt 0:02:10]} Qxd6 {[%emt 0:01:12]} 35. exd6 {[%emt 0:00:02]} Rd8 {[%emt 0:00:17]} 36. Rd1 {[%emt 0:00:37]} Rxd6 {[%emt 0:02:48]} 37. Rxd4 {[%emt 0:00:07]} Kf7 {[%emt 0:00:43]} 38. Be2 {[%emt 0:03:03]} Rd7 {[%emt 0:02:34]} 39. Bf3 {[%emt 0:00:26]} Bc6 {[%emt 0:01:02]} 40. Bxd5+ {[%emt 0:00:00]} Bxd5 {[%emt 0:00:00]} 41. Kf2 {[%emt 0:01:34]} Rd8 {[%emt 0:03:24]} 42. Bg5 {[%emt 0:00:14]} Rd6 {[%emt 0:00:12]} 43. Bh6 {[%emt 0:00:11]} Ke6 {[%emt 0:06:42]} 44. Bf8 {[%emt 0:00:35]} Rc6 {[%emt 0:00:45]} 45. Bc5 {[%emt 0:00:06]} a5 {[%emt 0:00:16]} 46. Rd2 {[%emt 0:00:35]} axb4 {[%emt 0:00:05]} 47. axb4 {[%emt 0:00:18]} Ra6 {[%emt 0:00:33]} 48. Re2+ {[%emt 0:00:06]} Be4 {[%emt 0:00:32]} 49. Rd2 {[%emt 0:00:03] Ke5} 1/2-1/2

[Event "KAZ-ch Open 2019"]
[Site "Almaty"]
[Date "2019.04.22"]
[Round "2.5"]
[White "Kvan, Andrey"]
[Black "Nogerbek, Kazybek"]
[Result "1-0"]
[ECO "A09"]
[WhiteElo "2286"]
[BlackElo "2341"]
[Annotator "NA"]
[PlyCount "81"]
[EventDate "2019.04.21"]
[EventType "tourn"]
[EventCountry "KAZ"]
[SourceTitle "playchess.com"]
[Source "ChessBase"]
[SourceQuality "1"]
[TimeControl "40/5400+30:1800+30"]

1. Nf3 {[%emt 0:00:00]} d5 {[%emt 0:00:04]} 2. c4 {[%emt 0:00:21]} d4 {[%emt 0:00:10]} 3. b4 {[%emt 0:01:29]} f6 {[%emt 0:00:10]} 4. e3 {[%emt 0:02:01]} dxe3 {[%emt 0:00:07]} 5. fxe3 {[%emt 0:00:17]} e5 {[%emt 0:00:10]} 6. Qb3 {[%emt 0:01:36]} a5 {[%emt 0:01:19]} 7. b5 {[%emt 0:02:08]} e4 {[%emt 0:01:26]} 8. Nd4 {[%emt 0:00:31]} f5 {[%emt 0:00:14]} 9. Bb2 {[%emt 0:05:11]} Nf6 {[%emt 0:00:38]} 10. Be2 {[%emt 0:00:49]} Bc5 {[%emt 0:05:04]} 11. O-O {[%emt 0:07:38]} g6 {[%emt 0:03:19]} 12. Kh1 {[%emt 0:10:28]} O-O {[%emt 0:02:45]} 13. Nc3 {[%emt 0:01:14]} Qe7 {[%emt 0:01:19]} 14. Nd5 {[%emt 0:04:13]} Nxd5 {[%emt 0:01:49]} 15. cxd5 {[%emt 0:00:02]} Bd6 {[%emt 0:21:40]} 16. Ne6 {[%emt 0:04:30]} Bxe6 {[%emt 0:05:49]} 17. dxe6 {[%emt 0:00:12]} h5 {[%emt 0:00:03]} 18. a4 {[%emt 0:05:30]} Kh7 {[%emt 0:00:30]} 19. Ba3 {[%emt 0:04:01]} c5 {[%emt 0:11:08]} 20. g3 {[%emt 0:00:31]} b6 {[%emt 0:00:40]} 21. Bc4 {[%emt 0:00:14]} Ra7 {[%emt 0:00:42]} 22. d3 {[%emt 0:02:28]} h4 {[%emt 0:04:16]} 23. Kg2 {[%emt 0:04:17]} Qg5 {[%emt 0:03:37]} 24. dxe4 {[%emt 0:08:49]} Bxg3 {[%emt 0:00:13]} 25. Ra2 {[%emt 0:00:51]} Bd6+ {[%emt 0:12:40]} 26. Kh1 {[%emt 0:00:21]} fxe4 {[%emt 0:01:39]} 27. Rxf8 {[%emt 0:04:51]} Bxf8 {[%emt 0:00:06]} 28. Rg2 {[%emt 0:00:19]} Qf5 {[%emt 0:01:53]} 29. Qd1 {[%emt 0:02:09]} Bh6 {[%emt 0:02:41]} 30. Qg4 {[%emt 0:02:06]} Re7 {[%emt 0:07:25]} 31. Qxh4 {[%emt 0:01:33]} g5 {[%emt 0:02:35]} 32. Qg3 {[%emt 0:03:11]} Qf3 {[%emt 0:02:58]} 33. Qxf3 {[%emt 0:00:24]} exf3 {[%emt 0:00:04]} 34. Rg3 {[%emt 0:00:07]} Kg6 {[%emt 0:03:20]} 35. Bb2 {[%emt 0:02:45]} g4 {[%emt 0:01:36]} 36. Be5 {[%emt 0:01:29]} Re8 {[%emt 0:01:09]} 37. e4 {[%emt 0:01:00]} Bg5 {[%emt 0:01:19]} 38. Rxg4 {[%emt 0:00:17]} Kh5 {[%emt 0:00:03]} 39. Rg3 {[%emt 0:00:52]} Rf8 {[%emt 0:01:35]} 40. Rxf3 {[%emt 0:00:00]} Rxf3 {[%emt 0:00:00]} 41. Be2 1-0

[Event "KAZ-ch Open 2019"]
[Site "Almaty"]
[Date "2019.04.22"]
[Round "2.6"]
[White "Kostenko, Petr"]
[Black "Ibrayev, Nurlan"]
[Result "0-1"]
[ECO "A12"]
[WhiteElo "2450"]
[BlackElo "2379"]
[Annotator "ChessBase"]
[PlyCount "94"]
[EventDate "2019.04.21"]
[EventType "tourn"]
[EventCountry "KAZ"]
[SourceTitle "playchess.com"]
[Source "ChessBase"]
[SourceQuality "1"]
[TimeControl "40/5400+30:1800+30"]

1. c4 {[%emt 0:00:00]} c6 {[%emt 0:01:28]} 2. Nf3 {[%emt 0:00:20]} d5 {[%emt 0:00:21]} 3. b3 {[%emt 0:00:12]} Bg4 {[%emt 0:01:04]} 4. Bb2 {[%emt 0:00:50]} e6 {[%emt 0:00:18]} 5. e3 {[%emt 0:04:55]} Nd7 {[%emt 0:00:36]} 6. h3 {[%emt 0:00:58]} Bh5 {[%emt 0:01:29]} 7. Be2 {[%emt 0:00:45]} Ngf6 {[%emt 0:00:42]} 8. Nc3 {[%emt 0:00:15]} Bd6 {[%emt 0:00:37]} 9. Rc1 {[%emt 0:06:19]} a6 {[%emt 0:03:09]} 10. g4 {[%emt 0:04:15]} Bg6 {[%emt 0:00:08]} 11. Nh4 {[%emt 0:00:49]} Qe7 {[%emt 0:13:44]} 12. d3 {[%emt 0:03:59]} Nf8 {[%emt 0:08:46]} 13. Nb1 {[%emt 0:09:26]} e5 {[%emt 0:07:18]} 14. cxd5 {[%emt 0:01:35]} Nxd5 {[%emt 0:01:36]} 15. Nxg6 {[%emt 0:07:56]} Nxg6 {[%emt 0:07:17]} 16. Nd2 {[%emt 0:02:53]} O-O {[%emt 0:01:49]} 17. Rc4 {[%emt 0:14:10]} b5 {[%emt 0:04:52]} 18. Rxc6 {[%emt 0:04:17]} Nb4 {[%emt 0:01:54]} 19. Rc1 {[%emt 0:00:52]} Nxa2 {[%emt 0:00:05]} 20. Ra1 {[%emt 0:00:13]} Nb4 {[%emt 0:00:03]} 21. Ne4 {[%emt 0:00:21]} Bc7 {[%emt 0:02:44]} 22. Qd2 {[%emt 0:06:12]} Nd5 {[%emt 0:09:47]} 23. Ba3 {[%emt 0:13:29]} b4 {[%emt 0:00:10]} 24. Bb2 {[%emt 0:00:01]} Bb6 {[%emt 0:01:30]} 25. g5 {[%emt 0:02:21]} Nh4 {[%emt 0:01:22]} 26. Rg1 {[%emt 0:00:50]} a5 {[%emt 0:02:54]} 27. Rc1 {[%emt 0:04:59]} Qa7 {[%emt 0:09:10]} 28. Rg4 {[%emt 0:05:11]} Nxe3 {[%emt 0:04:53]} 29. fxe3 {[%emt 0:00:36]} Bxe3 {[%emt 0:00:17]} 30. Qd1 {[%emt 0:01:33]} Bxc1 {[%emt 0:00:07]} 31. Qxc1 {[%emt 0:00:07]} Rac8 {[%emt 0:06:06]} 32. Qd2 {[%emt 0:00:34]} Nf5 {[%emt 0:05:06]} 33. Bxe5 {[%emt 0:00:17]} Ne3 {[%emt 0:00:07]} 34. Nf6+ {[%emt 0:02:27]} gxf6 {[%emt 0:02:36]} 35. gxf6+ {[%emt 0:00:21]} Kh8 {[%emt 0:00:02]} 36. Rg3 {[%emt 0:01:48]} Nc2+ {[%emt 0:01:42]} 37. Kf1 {[%emt 0:00:01]} Rg8 {[%emt 0:00:18]} 38. Rxg8+ {[%emt 0:00:19]} Rxg8 {[%emt 0:00:06]} 39. d4 {[%emt 0:00:16]} a4 {[%emt 0:02:30]} 40. Qxc2 {[%emt 0:00:00]} a3 {[%emt 0:00:00]} 41. Qa2 {[%emt 0:01:53]} Qb7 {[%emt 0:01:38]} 42. Kf2 {[%emt 0:02:57]} Qg2+ {[%emt 0:01:02]} 43. Ke3 {[%emt 0:00:04]} Rc8 {[%emt 0:01:03]} 44. d5 {[%emt 0:03:56]} Re8 {[%emt 0:02:00]} 45. Kd4 {[%emt 0:01:18]} Qf2+ {[%emt 0:00:18]} 46. Ke4 {[%emt 0:00:03]} Qxf6 {[%emt 0:00:12]} 47. Qa1 {[%emt 0:00:07]} Qxe5+ {[%emt 0:00:16] Qd1} 0-1

[Event "KAZ-ch Open 2019"]
[Site "Almaty"]
[Date "2019.04.23"]
[Round "3.1"]
[White "Ibrayev, Nurlan"]
[Black "Agmanov, Zhandos"]
[Result "1/2-1/2"]
[ECO "A46"]
[WhiteElo "2379"]
[BlackElo "2394"]
[Annotator "NA"]
[PlyCount "39"]
[EventDate "2019.04.21"]
[EventType "tourn"]
[EventCountry "KAZ"]
[SourceTitle "playchess.com"]
[Source "ChessBase"]
[SourceQuality "1"]
[TimeControl "40/5400+30:1800+30"]

1. d4 {[%emt 0:00:00]} Nf6 {[%emt 0:02:00]} 2. Nf3 {[%emt 0:00:00]} d5 {[%emt 0:00:13]} 3. g3 {[%emt 0:00:13]} c5 {[%emt 0:00:31]} 4. c4 {[%emt 0:00:16]} cxd4 {[%emt 0:00:30]} 5. cxd5 {[%emt 0:01:20]} Nxd5 {[%emt 0:07:09]} 6. Qa4+ {[%emt 0:10:17]} Nc6 {[%emt 0:17:43]} 7. Nxd4 {[%emt 0:01:03]} Bd7 {[%emt 0:01:48]} 8. Bg2 {[%emt 0:02:14]} Qb6 {[%emt 0:29:49]} 9. Nf3 {[%emt 0:10:44]} Rc8 {[%emt 0:09:54]} 10. O-O {[%emt 0:25:53]} e6 {[%emt 0:00:17]} 11. Nc3 {[%emt 0:01:49]} Nxc3 {[%emt 0:14:51]} 12. bxc3 {[%emt 0:00:13]} Ne5 {[%emt 0:00:12]} 13. Qb3 {[%emt 0:10:52]} Nxf3+ {[%emt 0:00:24]} 14. Bxf3 {[%emt 0:00:09]} Bc6 {[%emt 0:00:05]} 15. Be3 {[%emt 0:04:25]} Bc5 {[%emt 0:03:29]} 16. Qxb6 {[%emt 0:06:13]} Bxb6 {[%emt 0:00:21]} 17. Bxb6 {[%emt 0:01:21]} Bxf3 {[%emt 0:00:22]} 18. exf3 {[%emt 0:10:29]} axb6 {[%emt 0:00:07]} 19. Rfb1 {[%emt 0:00:53]} Rc6 {[%emt 0:00:54]} 20. c4 {[%emt 0:02:38]} 1/2-1/2

[Event "KAZ-ch Open 2019"]
[Site "Almaty"]
[Date "2019.04.23"]
[Round "3.3"]
[White "Kazakov, Konstantin"]
[Black "Kvan, Andrey"]
[Result "1-0"]
[ECO "A05"]
[WhiteElo "2369"]
[BlackElo "2286"]
[Annotator "NA"]
[PlyCount "219"]
[EventDate "2019.04.21"]
[EventType "tourn"]
[EventCountry "KAZ"]
[SourceTitle "playchess.com"]
[Source "ChessBase"]
[SourceQuality "1"]
[TimeControl "40/5400+30:1800+30"]

1. Nf3 {[%emt 0:00:00]} Nf6 {[%emt 0:00:00]} 2. e3 {[%emt 0:00:00]} g6 {[%emt 0:00:02]} 3. b3 {[%emt 0:00:00]} Bg7 {[%emt 0:00:14]} 4. Bb2 {[%emt 0:00:00]} O-O {[%emt 0:00:43]} 5. Be2 {[%emt 0:00:08]} d6 {[%emt 0:01:57]} 6. O-O {[%emt 0:00:09]} c5 {[%emt 0:01:18]} 7. c4 {[%emt 0:00:14]} b6 {[%emt 0:00:18]} 8. d4 {[%emt 0:00:15]} cxd4 {[%emt 0:02:56]} 9. Nxd4 {[%emt 0:00:08]} Bb7 {[%emt 0:00:27]} 10. Nc3 {[%emt 0:00:21]} Nbd7 {[%emt 0:01:12]} 11. Rc1 {[%emt 0:01:46]} a6 {[%emt 0:04:55]} 12. Bf3 {[%emt 0:00:45]} Bxf3 {[%emt 0:05:38]} 13. Qxf3 {[%emt 0:00:05]} Ne5 {[%emt 0:00:14]} 14. Qe2 {[%emt 0:00:05]} Rc8 {[%emt 0:01:10]} 15. Rfd1 {[%emt 0:01:01]} Nc6 {[%emt 0:07:10]} 16. Nf3 {[%emt 0:02:57]} Nd7 {[%emt 0:04:06]} 17. Nd5 {[%emt 0:00:27]} Bxb2 {[%emt 0:08:51]} 18. Qxb2 {[%emt 0:00:07]} Nde5 {[%emt 0:00:08]} 19. Nxe5 {[%emt 0:00:17]} Nxe5 {[%emt 0:00:13]} 20. Qd4 {[%emt 0:00:15]} Rb8 {[%emt 0:04:49]} 21. Qf4 {[%emt 0:02:03]} Kg7 {[%emt 0:04:14]} 22. Qd4 {[%emt 0:02:30]} Kg8 {[%emt 0:00:10]} 23. Rc3 {[%emt 0:01:21]} e6 {[%emt 0:05:29]} 24. Nb4 {[%emt 0:03:15]} a5 {[%emt 0:01:23]} 25. Nc2 {[%emt 0:01:25]} Qe7 {[%emt 0:03:11]} 26. Qd2 {[%emt 0:07:12]} Rfd8 {[%emt 0:04:13]} 27. Nd4 {[%emt 0:00:14]} Rbc8 {[%emt 0:00:13]} 28. e4 {[%emt 0:02:24]} Ng4 {[%emt 0:07:07]} 29. Nb5 {[%emt 0:04:42]} Nf6 {[%emt 0:02:58]} 30. Re3 {[%emt 0:01:38]} Ne8 {[%emt 0:06:54]} 31. Rd3 {[%emt 0:00:24]} Rc6 {[%emt 0:01:20]} 32. a4 {[%emt 0:01:00]} e5 {[%emt 0:02:28]} 33. Nc3 {[%emt 0:03:48]} Nc7 {[%emt 0:00:25]} 34. Rh3 {[%emt 0:00:16]} Rd7 {[%emt 0:02:34]} 35. Qh6 {[%emt 0:00:23]} f6 {[%emt 0:00:16]} 36. Qd2 {[%emt 0:00:57]} Qf7 {[%emt 0:00:45]} 37. Rf3 {[%emt 0:00:19]} Kg7 {[%emt 0:01:22]} 38. Qe3 {[%emt 0:00:49]} Rc5 {[%emt 0:01:24]} 39. Qd2 {[%emt 0:01:16]} Qf8 {[%emt 0:01:06]} 40. Rd3 {[%emt 0:00:00]} Rc6 {[%emt 0:00:00]} 41. h4 {[%emt 0:04:07]} h6 {[%emt 0:03:42]} 42. Rg3 {[%emt 0:00:46]} Qf7 {[%emt 0:00:32]} 43. Qe2 {[%emt 0:02:44]} Kh7 {[%emt 0:01:03]} 44. Qf3 {[%emt 0:00:41]} Kg7 {[%emt 0:02:56]} 45. Rd2 {[%emt 0:00:11]} Ne6 {[%emt 0:01:39]} 46. Nd5 {[%emt 0:00:08]} Nc7 {[%emt 0:01:21]} 47. Ne3 {[%emt 0:02:40]} Ne6 {[%emt 0:02:52]} 48. Qg4 {[%emt 0:00:11]} Nf4 {[%emt 0:01:53]} 49. Qd1 {[%emt 0:00:50]} Kh7 {[%emt 0:01:16]} 50. Rf3 {[%emt 0:00:49]} Qe6 {[%emt 0:02:35]} 51. Nd5 {[%emt 0:02:47]} Nh5 {[%emt 0:01:25]} 52. Rfd3 {[%emt 0:03:38]} Ng7 {[%emt 0:02:12]} 53. Qf3 {[%emt 0:03:27]} Rf7 {[%emt 0:01:14]} 54. Nc3 {[%emt 0:00:33]} h5 {[%emt 0:00:38]} 55. Nb5 {[%emt 0:00:19]} Ne8 {[%emt 0:00:12]} 56. Qd1 {[%emt 0:00:32]} Rd7 {[%emt 0:00:36]} 57. f4 {[%emt 0:01:51]} Kh6 {[%emt 0:02:16]} 58. Rf2 {[%emt 0:01:06]} Rg7 {[%emt 0:04:32]} 59. Qd2 {[%emt 0:01:57]} Kh7 {[%emt 0:00:34]} 60. Qe2 {[%emt 0:02:38]} Qg4 {[%emt 0:03:27]} 61. Qxg4 {[%emt 0:00:39]} hxg4 {[%emt 0:00:01]} 62. Rg3 {[%emt 0:00:46]} f5 {[%emt 0:07:25]} 63. fxe5 {[%emt 0:00:16]} dxe5 {[%emt 0:00:02]} 64. exf5 {[%emt 0:00:11]} Nf6 {[%emt 0:00:01]} 65. Re3 {[%emt 0:00:50]} e4 {[%emt 0:03:40]} 66. g3 {[%emt 0:02:33]} Rd7 {[%emt 0:01:01]} 67. Kg2 {[%emt 0:00:18]} Rc5 {[%emt 0:00:28]} 68. fxg6+ {[%emt 0:00:10]} Kxg6 {[%emt 0:00:01]} 69. Nc3 {[%emt 0:00:23]} Re5 {[%emt 0:00:19]} 70. Rfe2 {[%emt 0:01:51]} Rd4 {[%emt 0:00:39]} 71. Rf2 {[%emt 0:01:26]} Rf5 {[%emt 0:01:12]} 72. Ne2 {[%emt 0:01:20]} Rf3 {[%emt 0:01:09]} 73. Nxd4 {[%emt 0:00:21]} Rxe3 {[%emt 0:00:01]} 74. Rd2 {[%emt 0:01:57]} Nh5 {[%emt 0:00:54]} 75. Ne2 {[%emt 0:00:20]} Rxb3 {[%emt 0:02:59]} 76. Rd6+ {[%emt 0:00:13]} Kg7 {[%emt 0:01:28]} 77. Rd5 {[%emt 0:00:20]} Kh6 {[%emt 0:00:29]} 78. Rb5 {[%emt 0:00:30]} Rb4 {[%emt 0:02:34]} 79. Kf2 {[%emt 0:00:33]} Rxc4 {[%emt 0:00:17]} 80. Rxb6+ {[%emt 0:00:12]} Kg7 {[%emt 0:00:12]} 81. Rb5 {[%emt 0:00:14]} Kh6 {[%emt 0:01:40]} 82. Rxa5 {[%emt 0:00:19]} Rc2 {[%emt 0:00:07]} 83. Ke3 {[%emt 0:00:17]} Ra2 {[%emt 0:00:13]} 84. Ra6+ {[%emt 0:01:27]} Kh7 {[%emt 0:00:02]} 85. a5 {[%emt 0:00:39]} Ra3+ {[%emt 0:00:16]} 86. Kxe4 {[%emt 0:00:07]} Nxg3+ {[%emt 0:00:13]} 87. Nxg3 {[%emt 0:00:05]} Rxg3 {[%emt 0:00:07]} 88. Kf4 {[%emt 0:00:07]} Rb3 {[%emt 0:00:03]} 89. Kxg4 {[%emt 0:00:16]} Rb5 {[%emt 0:00:13]} 90. Ra8 {[%emt 0:00:47]} Rc5 {[%emt 0:00:15]} 91. Kf4 {[%emt 0:00:36]} Kg7 {[%emt 0:00:31]} 92. Ke3 {[%emt 0:00:05]} Rb5 {[%emt 0:00:13]} 93. Kd3 {[%emt 0:00:17]} Rc5 {[%emt 0:00:10]} 94. Kd4 {[%emt 0:00:36]} Rb5 {[%emt 0:00:14]} 95. Kc4 {[%emt 0:00:18]} Rf5 {[%emt 0:00:02]} 96. Kb4 {[%emt 0:01:44]} Rf4+ {[%emt 0:00:10]} 97. Kc5 {[%emt 0:00:08]} Rf5+ {[%emt 0:00:05]} 98. Kd6 {[%emt 0:00:07]} Rb5 {[%emt 0:01:01]} 99. Kc7 {[%emt 0:00:38]} Rf5 {[%emt 0:00:45]} 100. Ra7 {[%emt 0:00:13]} Kg8 {[%emt 0:00:40]} 101. Kd6 {[%emt 0:03:09]} Kh8 {[%emt 0:00:31]} 102. Ke6 {[%emt 0:01:14]} Rc5 {[%emt 0:00:02]} 103. Kf7 {[%emt 0:00:32]} Rd5 {[%emt 0:00:54]} 104. h5 {[%emt 0:00:18]} Rb5 {[%emt 0:00:17]} 105. Kg6 {[%emt 0:00:06]} Rb8 {[%emt 0:00:15]} 106. Rd7 {[%emt 0:00:22]} Ra8 {[%emt 0:00:11]} 107. Rd6 {[%emt 0:00:06]} Rg8+ {[%emt 0:01:04]} 108. Kf5 {[%emt 0:00:07]} Kh7 {[%emt 0:00:09]} 109. a6 {[%emt 0:00:43]} Rg1 {[%emt 0:00:04]} 110. Ke6 {[%emt 0:00:08]} 1-0